[Event "43rd Guernsey Festival 2017"]
[Site "Vale"]
[Date "2017.10.20"]
[Round "6"]
[White "Sedgwick, David"]
[Black "Dilleigh, Stephen P"]
[Result "1-0"]
[ECO "C01"]
[WhiteElo "1972"]
[BlackElo "2063"]
[Annotator "NA RC"]
[PlyCount "41"]
[EventDate "2017.??.??"]
[EventType "swiss"]
[EventCountry "GCI"]
[SourceTitle "playchess.com"]
[Source "ChessBase"]
[SourceQuality "1"]
[TimeControl "40/6000+30:2400+30"]

{[%evp 8,41,1,3,13,10,-5,-24,-15,-17,-13,-30,-19,-22,32,16,14,0,16,-8,0,-10,-10,32767,-15,-37,-16,-40,-37,-41,-14,-17,-13,-15,-16,-20]} 1. e4 {[%emt 0:02:41]} e6 {[%emt 0:00:10]} 2. d4 {[%emt 0:00:23]} d5 {[%emt 0:00:09]} 3. exd5 {[%emt 0:00:05]} exd5 {[%emt 0:00:10]} 4. c4 {[%emt 0:00:10]} Nf6 {[%emt 0:00:24]} 5. Nc3 {[%emt 0:00:14]} Bb4 {[%emt 0:00:57]} 6. Bd3 {[%emt 0:01:59]} O-O {[%emt 0:00:57]} 7. Nge2 {[%emt 0:00:13]} dxc4 {[%emt 0:00:33]} 8. Bxc4 {[%emt 0:00:13]} Nbd7 {[%emt 0:01:57] LiveBook: 67 Partien C01: French: Exchange Variation} (8... Nc6 9. a3 Bd6 10. f3 Re8 11. Bg5 h6 12. Bh4 Nxd4 13. Qxd4 Bg3+ 14. Kf1 Qxd4 15. Nxd4 Bxh4 16. g3 {½-½ (59) Rakhmanov,A (2669)-Potkin,V (2574) Sochi 2017}) 9. O-O {[%emt 0:00:36]} Nb6 {[%emt 0:01:03]} 10. Bb3 {[%emt 0:00:26]} Be7 {[%emt 0:10:38]} 11. Ng3 {[%emt 0:07:26]} c6 {[%emt 0:02:10]} 12. Bg5 {[%emt 0:08:01]} h6 {[%emt 0:15:55]} 13. Be3 {[%emt 0:00:49]} Nbd5 {[%emt 0:01:53]} 14. Nxd5 $146 {[%emt 0:00:50]} ({Predecessor:} 14. Bc1 Be6 15. Re1 Bb4 16. Bd2 {½-½ (50) Barcons Gallach,A (1894)-Guerrero Berrio,B (1786) Santa Eulalia de Roncana 2016}) 14... Nxd5 {[%emt 0:00:52]} 15. Qf3 {[%emt 0:01:41]} Be6 {[%emt 0:09:12]} 16. Nf5 {[%emt 0:04:19]} Bg5 {[%emt 0:05:24]} 17. Bxd5 {[%emt 0:16:23]} Bxd5 {[%emt 0:02:29]} 18. Qg3 {[%emt 0:03:58]} Qf6 {[%emt 0:10:56]} 19. f4 {[%emt 0:05:33]} Qxf5 {[%emt 0:00:57]} 20. fxg5 {[%emt 0:00:14]} Qg6 {[%emt 0:00:51]} 21. gxh6 $11 {[%emt 0:01:30]} 1-0

[Event "43rd Guernsey Festival 2017"]
[Site "Vale"]
[Date "2017.10.20"]
[Round "6"]
[White "Baart, Edwin"]
[Black "Foster, Paul"]
[Result "0-1"]
[WhiteElo "1816"]
[BlackElo "1485"]
[Annotator "NA RC"]
[PlyCount "64"]
[EventDate "2017.??.??"]
[EventType "swiss"]
[EventCountry "GCI"]
[SourceTitle "playchess.com"]
[Source "ChessBase"]
[SourceQuality "1"]
[TimeControl "40/6000+30:2400+30"]

{[%evp 8,64,0,-1,7,5,4,10,29,24,30,22,33,28,29,16,59,49,57,10,1,11,14,4,6,-1,0,-9,-8,32767,32767,32767,32767,32767,-23,-50,-19,-12,-8,-77,0,-40,21,-20,14,-55,0,-82,-87,-118,-141,-125,-114,-125,-137,-530,-136,-163,-89]} 1. d4 {[%emt 0:00:00]} Nf6 {[%emt 0:00:09]} 2. Nf3 {[%emt 0:00:00]} e6 {[%emt 0:00:32]} 3. Bg5 {[%emt 0:00:08]} Be7 {[%emt 0:00:55]} 4. e3 {[%emt 0:00:09]} b6 {[%emt 0:01:54]} 5. Be2 {[%emt 0:01:34] A46: 1 d4 Nf6 2 Nf3 e6: Torre, London and Colle Systems} (5. Bd3 Bb7 6. Nbd2 d6 7. Qe2 Nbd7 8. Ba6 Bxa6 9. Qxa6 d5 10. a4 Qc8 11. Qxc8+ Rxc8 12. Ke2 Ne4 13. h4 Nxd2 14. Kxd2 f6 15. Bf4 Kf7 16. h5 c5 17. g4 cxd4 18. exd4 e5 19. Be3 Bd6 20. c3 exd4 {½-½ (20) Gozzoli,Y (2583)-Butkiewicz,L (2447) Roquetas de Mar 2017}) 5... Bb7 {[%emt 0:00:07]} 6. c4 {[%emt 0:01:53]} d6 {[%emt 0:00:19]} 7. Nc3 {[%emt 0:00:32]} Nbd7 {[%emt 0:00:15]} 8. Qc2 {[%emt 0:00:23]} h6 {[%emt 0:01:13]} 9. Bh4 {[%emt 0:00:38]} c6 {[%emt 0:01:44]} 10. O-O {[%emt 0:00:45]} O-O {[%emt 0:00:56]} 11. a3 $146 {[%emt 0:04:23]} ({Predecessor:} 11. e4 e5 12. Rad1 Nh5 13. Bxe7 Qxe7 14. Nxe5 dxe5 15. Bxh5 exd4 16. Rxd4 {1-0 (57) Kiss,G (1857)-Uzonyi,T (1797) Hungary 2012}) 11... a5 {[%emt 0:02:08]} 12. e4 {[%emt 0:05:03]} e5 {[%emt 0:06:09]} 13. dxe5 {[%emt 0:07:07]} dxe5 {[%emt 0:02:54]} 14. Rfd1 {[%emt 0:01:17]} Qc7 {[%emt 0:00:22]} 15. Rd2 {[%emt 0:03:15]} Rfd8 {[%emt 0:01:35]} 16. Rad1 {[%emt 0:00:22]} Nf8 {[%emt 0:02:09]} 17. Rxd8 {[%emt 0:11:20]} Rxd8 {[%emt 0:00:12]} 18. Rxd8 {[%emt 0:00:57]} Bxd8 {[%emt 0:00:13]} 19. Qd3 {[%emt 0:02:18]} Ng6 {[%emt 0:03:08]} 20. Bg3 {[%emt 0:03:05]} Nd7 {[%emt 0:04:27]} 21. b4 {[%emt 0:02:20]} axb4 {[%emt 0:00:12]} 22. axb4 {[%emt 0:00:07]} Bf6 {[%emt 0:00:13]} 23. Nd2 {[%emt 0:01:28]} (23. Bf1 $11) 23... Ndf8 {[%emt 0:02:10]} (23... Nf4 $15 24. Bxf4 exf4) 24. f3 {[%emt 0:06:47]} Bh4 {[%emt 0:03:46]} ({Black should play} 24... Nf4 $15 25. Bxf4 exf4) 25. Nb3 {[%emt 0:07:21]} Ne6 {[%emt 0:03:36]} 26. c5 {[%emt 0:07:30]} ({White should try} 26. Bxh4 $11 Nxh4 27. g3) 26... Be7 {[%emt 0:06:13]} 27. Qe3 {[%emt 0:01:24]} (27. Na4 $1 $11 {remains equal.}) 27... bxc5 {[%emt 0:05:50]} 28. Nxc5 {[%emt 0:00:11]} Nxc5 {[%emt 0:00:24]} 29. bxc5 {[%emt 0:00:08]} Qa5 {[%emt 0:02:26]} 30. Bf2 {[%emt 0:00:32]} Nf4 {[%emt 0:03:27]} 31. Bd1 $2 {[%emt 0:06:41]} (31. Bf1 $17) 31... Qa1 $17 {[%emt 0:08:51]} (31... Bg5 $19 {bietet bessere Gewinnchancen.} 32. Kh1 Nd5) 32. Qd2 {[%emt 0:04:30]} Bc8 {[%emt 0:03:04]} 0-1

[Event "43rd Guernsey Festival 2017"]
[Site "Vale"]
[Date "2017.10.20"]
[Round "6"]
[White "O`Connell, Denis"]
[Black "Turner, Joseph David"]
[Result "1/2-1/2"]
[ECO "B07"]
[WhiteElo "1722"]
[BlackElo "1888"]
[Annotator "NA RC"]
[PlyCount "113"]
[EventDate "2017.??.??"]
[EventType "swiss"]
[EventCountry "GCI"]
[SourceTitle "playchess.com"]
[Source "ChessBase"]
[SourceQuality "1"]
[TimeControl "40/6000+30:2400+30"]

{[%evp 8,113,116,68,79,62,98,67,122,25,29,32767,32767,32767,32767,32767,32767,32767,12,-11,5,0,-14,-21,10,-35,-32,-43,-22,-18,252,246,246,254,277,254,422,120,132,84,94,0,61,-22,0,-19,0,-13,-17,-27,0,0,14,-30,0,0,0,-89,-106,-84,-100,-92,-98,-98,-119,-107,-83,-80,32767,32767,32767,32767,32767,32767,32767,32767,-80,-165,0,-18,32767,-126,-164,-189,-192,-186,-200,-188,-200,-256,-271,-229,-202,-245,32767,32767,32767,32767,-29957,-12845,-8,-8,0,-8,-8,-8,-8,-8]} 1. e4 {[%emt 0:00:00]} d6 {[%emt 0:00:06]} 2. d4 {[%emt 0:00:07]} Nf6 {[%emt 0:00:07]} 3. Nc3 {[%emt 0:00:11]} g6 {[%emt 0:00:05]} 4. Be3 {[%emt 0:00:18]} b6 {[%emt 0:02:25] B07: Pirc Defence: Miscellaneous Systems} (4... Bg7 $14) (4... a6 5. f3 b5 6. Qd2 Nbd7 7. O-O-O Nb6 8. g4 h5 9. g5 Nfd7 10. e5 Bg7 11. e6 fxe6 12. Bd3 Nf8 {½-½ (52) Morozevich,A (2676)-Zvjaginsev,V (2643) Sochi 2017}) 5. Qd2 {[%emt 0:00:24]} Bb7 {[%emt 0:00:22]} 6. f3 {[%emt 0:03:19]} Nbd7 {[%emt 0:01:08]} 7. O-O-O {[%emt 0:00:46]} c5 {[%emt 0:00:20]} 8. d5 {[%emt 0:00:52]} ({Better is} 8. g4 $16) 8... a6 {[%emt 0:01:08]} 9. h4 $146 {[%emt 0:01:46]} ({Predecessor:} 9. g4 b5 10. h4 h5 11. g5 Nh7 12. f4 {0-1 (41) Okuyaz,D (1607)-Yu,J Maribor 2012}) 9... h5 {[%emt 0:01:24]} 10. Nh3 {[%emt 0:00:18]} b5 {[%emt 0:04:12]} 11. Ng5 {[%emt 0:00:29]} Qa5 {[%emt 0:02:39]} 12. Kb1 {[%emt 0:00:43]} Ne5 {[%emt 0:01:20]} 13. Ne2 {[%emt 0:01:02]} Qc7 {[%emt 0:03:49]} 14. Nf4 {[%emt 0:00:24]} Bc8 {[%emt 0:01:05]} 15. Be2 {[%emt 0:00:45]} Bd7 {[%emt 0:01:22]} 16. Rhe1 {[%emt 0:00:58]} Bg7 {[%emt 0:03:12]} 17. Nfh3 {[%emt 0:02:17]} a5 {[%emt 0:04:37]} 18. Bf4 {[%emt 0:00:13]} Nc4 $2 {[%emt 0:05:30]} (18... O-O $15 {stays ahead.}) 19. Bxc4 $1 {[%emt 0:01:22]} bxc4 {[%emt 0:00:07]} 20. e5 {[%emt 0:00:33]} dxe5 {[%emt 0:02:38]} 21. Bxe5 {[%emt 0:02:45]} Qb7 $2 {[%emt 0:02:43]} (21... Qb6 22. d6 O-O 23. dxe7 Rfe8) 22. Nf4 $2 {[%emt 0:08:04]} (22. d6 $18 O-O 23. dxe7) 22... O-O {[%emt 0:01:38]} 23. Qe3 {[%emt 0:06:22]} Qb5 {[%emt 0:04:12]} 24. Rh1 {[%emt 0:02:01]} ({White should try} 24. Qc3 $16 Qb4 25. d6) 24... a4 {[%emt 0:00:45]} ({Black should play} 24... Rfb8 $11) 25. Qa3 {[%emt 0:02:25]} Bf5 {[%emt 0:03:22]} 26. Rhe1 {[%emt 0:03:47]} Ra7 {[%emt 0:00:15]} 27. Ne4 {[%emt 0:01:08]} Bxe4 {[%emt 0:04:46]} 28. fxe4 {[%emt 0:01:49]} Qb4 {[%emt 0:01:53]} 29. Qxb4 {[%emt 0:04:17]} cxb4 {[%emt 0:00:19]} 30. d6 {[%emt 0:02:29]} e6 {[%emt 0:04:56]} 31. Rd4 {[%emt 0:03:49]} Rc8 {[%emt 0:02:38]} 32. g3 {[%emt 0:01:43] [#]} (32. Bxf6 $11 Bxf6 33. e5) 32... Nd7 $1 {[%emt 0:01:27]} 33. Bxg7 {[%emt 0:00:21]} Kxg7 {[%emt 0:00:04]} 34. e5 {[%emt 0:00:24]} Ra5 {[%emt 0:00:49]} 35. Rde4 {[%emt 0:01:02]} Rcc5 {[%emt 0:00:28]} 36. b3 {[%emt 0:01:08]} axb3 {[%emt 0:01:39]} ({And not} 36... Nxe5 {[#]} 37. c3 $1 $16 {[%mdl 512]}) 37. axb3 {[%emt 0:00:42]} cxb3 {[%emt 0:09:34]} 38. cxb3 {[%emt 0:01:21]} Rxe5 {[%emt 0:00:50]} 39. Rxe5 {[%emt 0:06:20]} Rxe5 {[%emt 0:02:04]} 40. Rxe5 {[%emt 0:01:42]} Nxe5 {[%emt 0:40:09]} 41. Nd3 {[%emt 0:40:28]} Nd7 {[%emt 0:01:47]} ({Don't blunder} 41... Nxd3 $2 42. d7 $18) 42. Nxb4 {[%emt 0:00:18]} f6 {[%emt 0:00:40]} ({Black should try} 42... Kf6 $17 43. Nd3 e5) 43. Kc2 {[%emt 0:00:36]} Kf7 {[%emt 0:00:08]} 44. Nd3 {[%emt 0:07:14]} (44. Na6 $11) 44... e5 {[%emt 0:00:16]} 45. b4 {[%emt 0:04:58]} Ke6 {[%emt 0:00:23]} 46. Nf2 {[%emt 0:00:54]} Kxd6 {[%emt 0:00:15]} 47. Kd3 {[%emt 0:01:30]} f5 {[%emt 0:01:32]} 48. Nh3 {[%emt 0:00:19]} Kd5 {[%emt 0:01:31]} 49. Ng5 {[%emt 0:02:00]} e4+ {[%emt 0:03:59]} 50. Ke3 {[%emt 0:00:09]} Kc4 {[%emt 0:01:00]} 51. Nxe4 {[%emt 0:00:38]} fxe4 {[%emt 0:00:12]} 52. Kxe4 {[%emt 0:00:03]} Kxb4 {[%emt 0:00:24]} 53. Kf4 {[%emt 0:00:15] [#]} Kc4 $2 {[%emt 0:05:05]} (53... Nf8 $1 $19 54. g4 Ne6+ 55. Ke4 hxg4) 54. g4 $1 hxg4 {[%emt 0:03:25]} 55. Kxg4 {[%emt 0:01:48]} Kd4 {[%emt 0:00:51]} 56. Kg5 Ne5 57. h5 $11 {[%emt 0:03:57]} 1/2-1/2

[Event "43rd Guernsey Festival 2017"]
[Site "Vale"]
[Date "2017.10.20"]
[Round "6"]
[White "Jongerius, Marc"]
[Black "Stanners, Michael J"]
[Result "1/2-1/2"]
[ECO "B07"]
[WhiteElo "1588"]
[BlackElo "1761"]
[Annotator "NA RC"]
[PlyCount "44"]
[EventDate "2017.??.??"]
[EventType "swiss"]
[EventCountry "GCI"]
[SourceTitle "playchess.com"]
[Source "ChessBase"]
[SourceQuality "1"]
[TimeControl "40/6000+30:2400+30"]

1. e4 d6 2. d4 Nf6 3. Nc3 c6 4. f4 Qa5 5. Bd3 e5 6. Nf3 Bg4 7. Be3 exf4 8. Bxf4 Qh5 9. e5 dxe5 10. dxe5 Nfd7 11. Ne4 Nxe5 12. Ng3 Nxd3+ 13. Qxd3 Qa5+ 14. Bd2 Qd5 15. Qe3+ Qe6 16. Ne5 Be7 17. Nxg4 Qxg4 18. O-O Qe6 19. Rae1 O-O 20. Qxe6 fxe6 21. Rxe6 Bc5+ 22. Be3 Nd7 1/2-1/2

[Event "43rd Guernsey Festival 2017"]
[Site "Vale"]
[Date "2017.10.21"]
[Round "7"]
[White "Mack, Wolfgang"]
[Black "Reijneveld, Ad"]
[Result "1-0"]
[ECO "A00"]
[WhiteElo "2149"]
[BlackElo "2078"]
[Annotator "NA"]
[PlyCount "72"]
[EventDate "2017.??.??"]
[EventType "swiss"]
[EventCountry "GCI"]
[SourceTitle "playchess.com"]
[Source "ChessBase"]
[SourceQuality "1"]
[TimeControl "40/6000+30:2400+30"]

{[%evp 8,55,7,0,10,-8,8,0,0,0,-1,0,3,-8,5,12,32767,8,32767,8,15,0,12,5,0,0,0,-7,18,0,25,-2,5,-26,5,-254,-243,32767,32767,32767,-251,-299,-293,-322,-331,-394,-320,-423,-494,-425]} 1. g3 {[%emt 0:00:00]} c5 {[%emt 0:00:17]} 2. Bg2 {[%emt 0:00:00]} g6 {[%emt 0:00:13]} 3. e4 {[%emt 0:00:39]} Bg7 {[%emt 0:00:20]} 4. d3 {[%emt 0:00:24]} Nc6 {[%emt 0:00:28]} 5. c3 {[%emt 0:01:07]} d6 {[%emt 0:05:51]} 6. Be3 {[%emt 0:04:20] B20: Sicilian: Unusual White 2nd moves} e6 {[%emt 0:05:04] LiveBook: 5 Games} ({Predecessor:} 6... Rb8 7. Ne2 e6 8. Qd2 b5 9. O-O Nge7 10. Bh6 O-O 11. Bxg7 Kxg7 {1-0 (33) Martin Fuentes,A (2301)-Castejon Caballero,A (2121) Badajoz 2013}) 7. Na3 $146 {[%emt 0:03:53]} (7. f4 Nge7 8. Nf3 O-O 9. O-O b6 10. Nbd2 Bb7 11. Bf2 Qd7 12. Qe2 f5 13. Rad1 Rae8 14. Rfe1 Kh8 15. Nc4 e5 16. fxe5 Nxe5 17. Ncxe5 dxe5 18. exf5 Nxf5 {0-1 (32) Bartel,M (2641)-Riazantsev,A (2692) Dubai 2014}) 7... Nge7 {[%emt 0:03:02]} 8. Qd2 {[%emt 0:01:08]} O-O {[%emt 0:11:37]} 9. Ne2 {[%emt 0:03:10]} Rb8 {[%emt 0:03:06]} 10. Bh6 {[%emt 0:01:59]} b5 {[%emt 0:05:01]} 11. Bxg7 {[%emt 0:17:29]} Kxg7 {[%emt 0:01:56]} 12. O-O {[%emt 0:07:19]} a5 {[%emt 0:07:57]} 13. Nc2 {[%emt 0:01:18]} b4 {[%emt 0:07:43]} 14. Ne3 {[%emt 0:02:32]} Ba6 {[%emt 0:03:03]} 15. Ng4 {[%emt 0:14:41]} Kh8 {[%emt 0:15:28]} 16. f4 {[%emt 0:00:44]} f5 {[%emt 0:02:02]} 17. exf5 {[%emt 0:20:16]} gxf5 {[%emt 0:02:04]} 18. Nf2 {[%emt 0:06:07]} d5 {[%emt 0:06:59]} 19. d4 {[%emt 0:01:15]} bxc3 {[%emt 0:01:34]} 20. bxc3 {[%emt 0:02:08]} Qb6 {[%emt 0:01:17]} 21. dxc5 $2 {[%emt 0:02:23] [#]} (21. Rfe1 $11 {and White has nothing to worry.}) 21... Qb2 $1 {[%emt 0:01:57]} ({Worse is} 21... Qxc5 22. Rfe1 $11) 22. Qxb2 {[%emt 0:01:16]} Rxb2 {[%emt 0:00:06]} 23. Nd4 {[%emt 0:00:07]} Bxf1 {[%emt 0:01:20]} 24. Bxf1 {[%emt 0:00:48]} Nxd4 {[%emt 0:02:16]} 25. cxd4 {[%emt 0:00:04]} Nc6 {[%emt 0:00:11]} 26. a4 {[%emt 0:07:13]} (26. Nd3 {was necessary.} Rd2 27. Ne5 Nxd4 28. a4) 26... Rfb8 {[%emt 0:03:31]} 27. Bb5 {[%emt 0:07:14]} Nxd4 {[%emt 0:00:22]} 28. Nd3 $19 {[%emt 0:00:18]} Rd2 {[%emt 0:03:48]} 29. Rb1 {[%emt 0:03:50]} Nf3+ {[%emt 0:02:46]} 30. Kf1 {[%emt 0:00:32]} Nxh2+ {[%emt 0:00:54]} 31. Kg1 {[%emt 0:00:06]} Nf3+ {[%emt 0:00:04]} 32. Kf1 {[%emt 0:00:04]} Rxd3 {[%emt 0:00:10]} 33. Rc1 {[%emt 0:00:57]} Rb3 {[%emt 0:05:22]} 34. c6 {[%emt 0:00:45]} Nd2+ {[%emt 0:00:15]} 35. Kf2 {[%emt 0:00:15]} Nc4 {[%emt 0:00:21]} 36. Ba6 {[%emt 0:00:21]} Rb2+ {[%emt 0:02:13]} 1-0

[Event "43rd Guernsey Festival 2017"]
[Site "Vale"]
[Date "2017.10.21"]
[Round "7"]
[White "Curtis, John E"]
[Black "Hewson, Brian W R"]
[Result "1/2-1/2"]
[ECO "D30"]
[WhiteElo "2093"]
[BlackElo "1995"]
[Annotator "NA"]
[PlyCount "46"]
[EventDate "2017.??.??"]
[EventType "swiss"]
[EventCountry "GCI"]
[SourceTitle "playchess.com"]
[Source "ChessBase"]
[SourceQuality "1"]
[TimeControl "40/6000+30:2400+30"]

{[%evp 8,44,31,14,16,21,26,23,37,46,43,49,40,26,74,50,39,35,32767,18,18,0,32767,0,0,0,11,32767,25,0,0,-8,-3,-13,32767,-20,-12,-6,-14]} 1. d4 {[%emt 0:00:00]} d5 {[%emt 0:00:05]} 2. Nf3 {[%emt 0:00:00]} Nf6 {[%emt 0:00:05]} 3. e3 {[%emt 0:00:00]} c6 {[%emt 0:11:14]} 4. c4 {[%emt 0:00:54]} e6 {[%emt 0:00:44]} 5. Nbd2 {[%emt 0:00:53]} Nbd7 {[%emt 0:00:22]} 6. Bd3 {[%emt 0:00:15]} Bd6 {[%emt 0:03:42]} 7. O-O {[%emt 0:01:41]} O-O {[%emt 0:00:33]} 8. e4 {[%emt 0:00:25]} dxe4 {[%emt 0:01:38]} 9. Nxe4 {[%emt 0:00:04]} Nxe4 {[%emt 0:00:51]} 10. Bxe4 {[%emt 0:00:05]} h6 {[%emt 0:08:32]} 11. Bc2 {[%emt 0:06:10]} e5 {[%emt 0:04:24] LiveBook: 298 Games} 12. Re1 {[%emt 0:13:59]} exd4 {[%emt 0:13:03] D46: Semi-Slav: 5 e3 Nbd7 6 Bd3, Black avoids the Meran} (12... Bb4 13. Re2 exd4 14. Qd3 Nf6 15. h3 Re8 16. Rxe8+ Qxe8 17. Bf4 Be6 18. Be5 c5 19. a3 Ba5 20. Bxf6 gxf6 {½-½ (35) Meier,G (2646)-Michiels,B (2535) Tromsoe 2014}) 13. Nxd4 {[%emt 0:08:34]} Nf6 {[%emt 0:04:15]} 14. Qd3 {[%emt 0:16:54]} Bb4 {[%emt 0:18:50]} 15. Rd1 {[%emt 0:09:50]} Re8 $146 {[%emt 0:05:49]} ({Predecessor:} 15... c5 16. Qb3 Qe7 17. Nf5 Bxf5 18. Bxf5 Rad8 19. Be3 Ba5 20. Qa3 {0-1 (40) Robiolle,J (2000)-Ollivier,J (1929) Muret 2009}) 16. Be3 {[%emt 0:06:17]} Bf8 {[%emt 0:04:59]} 17. h3 {[%emt 0:12:03]} a6 {[%emt 0:06:32]} 18. Qb3 {[%emt 0:01:30]} Qc7 {[%emt 0:01:02]} 19. Rac1 {[%emt 0:07:11]} c5 {[%emt 0:04:31]} 20. Ne2 {[%emt 0:01:07]} Be6 {[%emt 0:01:08]} 21. Nf4 {[%emt 0:02:44]} Bd6 {[%emt 0:03:11]} 22. Nxe6 {[%emt 0:02:41]} Rxe6 $11 {[%emt 0:00:08]} 23. Qd3 {[%emt 0:02:35]} Bf4 {[%emt 0:01:38]} 1/2-1/2

[Event "43rd Guernsey Festival 2017"]
[Site "Vale"]
[Date "2017.10.21"]
[Round "7"]
[White "Dilleigh, Stephen P"]
[Black "Hamperl, Fred"]
[Result "1/2-1/2"]
[ECO "B38"]
[WhiteElo "2063"]
[BlackElo "2062"]
[Annotator "NA RC"]
[PlyCount "22"]
[EventDate "2017.??.??"]
[EventType "swiss"]
[EventCountry "GCI"]
[SourceTitle "playchess.com"]
[Source "ChessBase"]
[SourceQuality "1"]
[TimeControl "40/6000+30:2400+30"]

{[%evp 13,22,47,56,28,48,62,39,66,32767,47,49]} 1. Nf3 {[%emt 0:00:00]} c5 {[%emt 0:01:01]} 2. c4 {[%emt 0:00:00]} g6 {[%emt 0:00:37]} 3. e4 {[%emt 0:00:06]} Bg7 {[%emt 0:00:10]} 4. d4 {[%emt 0:00:12]} cxd4 {[%emt 0:00:13]} 5. Nxd4 {[%emt 0:00:11]} Nc6 {[%emt 0:00:17]} 6. Be3 {[%emt 0:00:53]} Nh6 {[%emt 0:00:37]} 7. Nc3 {[%emt 0:14:33]} d6 {[%emt 0:04:18]} 8. Be2 {[%emt 0:02:30]} f5 {[%emt 0:05:52]} 9. exf5 {[%emt 0:07:42]} Nxf5 {[%emt 0:01:04]} 10. Nxf5 {[%emt 0:00:55]} Bxf5 {[%emt 0:00:19]} 11. O-O {[%emt 0:03:15]} O-O $14 {[%emt 0:01:12] LiveBook: 11 Games} 1/2-1/2

[Event "43rd Guernsey Festival 2017"]
[Site "Vale"]
[Date "2017.10.21"]
[Round "7"]
[White "Purdon, Colin"]
[Black "Kirby, Peter J"]
[Result "1-0"]
[ECO "E90"]
[WhiteElo "2047"]
[BlackElo "1996"]
[Annotator "NA RC"]
[PlyCount "39"]
[EventDate "2017.??.??"]
[EventType "swiss"]
[EventCountry "GCI"]
[SourceTitle "playchess.com"]
[Source "ChessBase"]
[SourceQuality "1"]
[TimeControl "40/6000+30:2400+30"]

{[%evp 15,39,39,54,52,35,24,28,22,123,115,145,127,127,139,420,32767,32767,32767,32767,32767,32767,631,32767,32767,32767,1735]} 1. d4 {[%emt 0:00:00]} Nf6 {[%emt 0:00:04]} 2. c4 {[%emt 0:00:00]} g6 {[%emt 0:00:09]} 3. Nc3 {[%emt 0:00:00]} Bg7 {[%emt 0:00:08]} 4. e4 {[%emt 0:00:00]} d6 {[%emt 0:00:06]} 5. Nf3 {[%emt 0:00:10]} O-O {[%emt 0:00:19]} 6. h3 {[%emt 0:00:09]} e5 {[%emt 0:00:09]} 7. d5 {[%emt 0:00:07]} Nh5 {[%emt 0:00:18]} 8. g3 {[%emt 0:00:35] E90: King's Indian: Classical: Early deviations and 6 h3} (8. Be3 Na6 9. a3 c5 10. dxc6 bxc6 11. b4 f5 12. Qa4 c5 13. Rd1 Bb7 14. bxc5 f4 15. c6 fxe3 16. cxb7 exf2+ 17. Kd2 Nc5 18. bxa8=Q Qxa8 {0-1 (18) Kovalenko,I (2684)-Mamedov,R (2688) Tallinn 2016}) 8... f5 {[%emt 0:00:15]} 9. exf5 {[%emt 0:01:09]} gxf5 {[%emt 0:00:06]} 10. Ng5 {[%emt 0:02:28]} Nf6 {[%emt 0:02:23]} 11. Bg2 {[%emt 0:02:40] LiveBook: 7 Games} a5 {[%emt 0:03:52] [#]} (11... Qe7 $11) 12. g4 $1 $146 {[%emt 0:14:06]} ({Predecessor:} 12. Be3 Qe7 13. Qe2 Na6 14. O-O h6 15. Nf3 Bd7 {½-½ (50) Gordon,S (2508)-Calzetta Ruiz,M (2264) Liverpool 2008}) 12... Na6 {[%emt 0:04:51]} 13. Ne6 {[%emt 0:07:06]} Bxe6 {[%emt 0:00:04]} 14. dxe6 {[%emt 0:00:06]} fxg4 $2 {[%emt 0:10:38]} (14... Ne4 $16 {was worth a try.}) 15. hxg4 {[%emt 0:05:14]} h6 {[%emt 0:11:05]} 16. Bxh6 {[%emt 0:02:37]} Bxh6 {[%emt 0:00:40]} 17. Rxh6 {[%emt 0:00:10]} Qe7 {[%emt 0:04:53]} 18. g5 {[%emt 0:04:14]} Qg7 {[%emt 0:01:24]} 19. Ne4 {[%emt 0:05:29]} Nh7 {[%emt 0:03:01]} 20. Qh5 $18 {[%emt 0:00:44]} 1-0

[Event "43rd Guernsey Festival 2017"]
[Site "Vale"]
[Date "2017.10.21"]
[Round "7"]
[White "Bowmer, Kevin"]
[Black "Johnsen, Gunnar"]
[Result "1-0"]
[ECO "C06"]
[WhiteElo "2041"]
[BlackElo "2178"]
[Annotator "NA"]
[PlyCount "51"]
[EventDate "2017.??.??"]
[EventType "swiss"]
[EventCountry "GCI"]
[SourceTitle "playchess.com"]
[Source "ChessBase"]
[SourceQuality "1"]
[TimeControl "40/6000+30:2400+30"]

{[%evp 9,50,26,31,31,33,25,50,41,27,27,33,23,35,31,43,16,46,45,40,53,74,87,32767,68,32767,32767,70,63,57,43,50,54,50,32767,66,32767,32767,32767,223,253,258,274,500]} 1. e4 {[%emt 0:00:00]} e6 {[%emt 0:00:47]} 2. d4 {[%emt 0:00:00]} d5 {[%emt 0:00:04]} 3. Nd2 {[%emt 0:00:01]} Nf6 {[%emt 0:00:14]} 4. e5 {[%emt 0:00:21]} Nfd7 {[%emt 0:00:18]} 5. c3 {[%emt 0:00:23]} c5 {[%emt 0:00:22]} 6. Bd3 {[%emt 0:00:12]} Nc6 {[%emt 0:00:05]} 7. Ne2 {[%emt 0:00:22]} cxd4 {[%emt 0:00:18]} 8. cxd4 {[%emt 0:00:12]} f6 {[%emt 0:00:06]} 9. exf6 {[%emt 0:00:22]} Nxf6 {[%emt 0:00:00]} 10. O-O {[%emt 0:00:50]} Bd6 {[%emt 0:00:21]} 11. Nf3 {[%emt 0:00:30]} O-O {[%emt 0:00:05]} 12. Bf4 {[%emt 0:02:38]} Nh5 {[%emt 0:04:29]} 13. Bxd6 {[%emt 0:06:20] C06: French Tarrasch: 3...Nf6 4 e5 Nfd7 5 Bd3 main lines} Qxd6 {[%emt 0:00:26] LiveBook: 60 Games} 14. Rc1 {[%emt 0:04:31]} Rxf3 {[%emt 0:10:02]} 15. gxf3 {[%emt 0:03:47]} Bd7 {[%emt 0:03:36]} 16. Rc3 {[%emt 0:13:21]} Rf8 {[%emt 0:01:54]} 17. Re1 {[%emt 0:15:15] [#]} Nf4 $146 {[%emt 0:10:35]} ({Predecessor:} 17... a6 18. Qd2 Be8 19. Bb1 Rf6 20. f4 Bf7 {1-0 (43) Savchenko,B (2632)-Ponomariov,R (2744) Moscow 2010}) 18. Bb5 {[%emt 0:16:02]} Nh3+ {[%emt 0:21:07]} 19. Kg2 {[%emt 0:02:17]} e5 {[%emt 0:06:28]} 20. Bxc6 {[%emt 0:03:16]} bxc6 {[%emt 0:05:20]} 21. dxe5 {[%emt 0:05:47]} Qxe5 {[%emt 0:02:53]} 22. Qd4 {[%emt 0:09:47]} Nf4+ {[%emt 0:03:58]} 23. Kh1 {[%emt 0:01:42]} Qe7 {[%emt 0:11:56]} (23... Qxd4 $16 24. Nxd4 c5) 24. Re3 {[%emt 0:03:58]} ({Less strong is} 24. Qxa7 Nh3 $16) 24... Ne6 {[%emt 0:00:35]} 25. Qxa7 {[%emt 0:02:33]} c5 $18 {[%emt 0:11:37]} (25... Qd6 {was worth a try.} 26. Nd4 Nxd4 27. Qxd4 c5) 26. Nf4 {[%emt 0:02:10]} 1-0